[Event "Titled Tuesday Blitz July 11 Early 2023"]
[White "Roque Sola, Gisela"]
[Black "Shuvalova, Polina"]
[WhiteFideId "5120241"]
[BlackFideId "24171760"]
[WhiteElo "2151"]
[BlackElo "2695"]
[Result "0-1"]
[Round "3"]
[TimeControl "180+2"]
[Date "2023.07.11"]
[WhiteClock "0:00:00"]
[BlackClock "0:00:13"]
[Board "48"]

1. e4 {[%clk 0:03:00]}  c6 {[%clk 0:02:56]} 2. d4 {[%clk 0:02:59]}  d5 {[%clk 0:02:57]} 3. e5 {[%clk 0:03:00]}  Bf5 {[%clk 0:02:56]} 4. c4 {[%clk 0:03:00]}  e6 {[%clk 0:02:55]} 5. Nc3 {[%clk 0:03:01]}  Ne7 {[%clk 0:02:54]} 6. h4 {[%clk 0:02:55]}  h6 {[%clk 0:02:53]} 7. g4 {[%clk 0:02:34]}  Bh7 {[%clk 0:02:50]} 8. cxd5 {[%clk 0:02:32]}  Nxd5 {[%clk 0:02:48]} 9. Bg2 {[%clk 0:02:25]}  Nb4 {[%clk 0:02:26]} 10. Ne4 {[%clk 0:01:53]}  Qxd4 {[%clk 0:02:25]} 11. Qxd4 {[%clk 0:01:41]}  Nc2+ {[%clk 0:02:24]} 12. Kf1 {[%clk 0:01:40]}  Nxd4 {[%clk 0:02:25]} 13. Bf4 {[%clk 0:01:31]}  Nd7 {[%clk 0:01:43]} 14. Rd1 {[%clk 0:01:29]}  Nb5 {[%clk 0:01:38]} 15. a4 {[%clk 0:01:22]}  Bxe4 {[%clk 0:01:34]} 16. Bxe4 {[%clk 0:01:20]}  Nc7 {[%clk 0:01:34]} 17. Nf3 {[%clk 0:01:05]}  Nd5 {[%clk 0:01:33]} 18. Bg3 {[%clk 0:01:03]}  Be7 {[%clk 0:01:28]} 19. Kg2 {[%clk 0:00:48]}  h5 {[%clk 0:01:21]} 20. g5 {[%clk 0:00:47]}  g6 {[%clk 0:01:21]} 21. Nd2 {[%clk 0:00:36]}  a5 {[%clk 0:01:10]} 22. Nc4 {[%clk 0:00:31]}  O-O {[%clk 0:00:59]} 23. f3 {[%clk 0:00:26]}  Nc5 {[%clk 0:00:49]} 24. Bxd5 {[%clk 0:00:24]}  cxd5 {[%clk 0:00:48]} 25. Nd6 {[%clk 0:00:23]}  Nxa4 {[%clk 0:00:27]} 26. Nxb7 {[%clk 0:00:20]}  Rfb8 {[%clk 0:00:25]} 27. Nd6 {[%clk 0:00:19]}  Rxb2+ {[%clk 0:00:25]} 28. Kh3 {[%clk 0:00:19]}  Nb6 {[%clk 0:00:17]} 29. Rb1 {[%clk 0:00:16]}  Rxb1 {[%clk 0:00:16]} 30. Rxb1 {[%clk 0:00:15]}  Nc4 {[%clk 0:00:17]} 31. Rb7 {[%clk 0:00:08]}  Kf8 {[%clk 0:00:16]} 32. Nxc4 {[%clk 0:00:03]}  dxc4 {[%clk 0:00:16]} 33. Rc7 {[%clk 0:00:04]}  a4 {[%clk 0:00:13]} 34. Rxc4 {[%clk 0:00:04]}  a3 {[%clk 0:00:14]} 35. Rc1 {[%clk 0:00:04]}  a2 {[%clk 0:00:14]} 36. Ra1 {[%clk 0:00:00]}  Bc5 {[%clk 0:00:13]} 0-1


[Site "https://www.chess.com"]

[Event "Titled Tuesday Blitz July 11 Early 2023"]
[White "AyMitecK"]
[Black "Timofeev, Artyom"]
[BlackFideId "4140419"]
[WhiteElo "2560"]
[BlackElo "2842"]
[Result "0-1"]
[Round "3"]
[TimeControl "180+2"]
[Date "2023.07.11"]
[WhiteClock "0:00:53"]
[BlackClock "0:01:22"]
[Board "52"]

1. e4 {[%clk 0:03:00]}  d6 {[%clk 0:02:59]} 2. d4 {[%clk 0:03:00]}  Nf6 {[%clk 0:02:59]} 3. Nc3 {[%clk 0:03:00]}  g6 {[%clk 0:02:59]} 4. Be3 {[%clk 0:03:00]}  c6 {[%clk 0:02:58]} 5. Qd2 {[%clk 0:03:00]}  b5 {[%clk 0:02:58]} 6. Bd3 {[%clk 0:02:59]}  Bb7 {[%clk 0:02:57]} 7. f3 {[%clk 0:02:59]}  Nbd7 {[%clk 0:02:56]} 8. h4 {[%clk 0:02:59]}  e5 {[%clk 0:02:56]} 9. Nce2 {[%clk 0:02:57]}  a6 {[%clk 0:02:49]} 10. c3 {[%clk 0:02:54]}  d5 {[%clk 0:02:44]} 11. dxe5 {[%clk 0:02:51]}  Nxe5 {[%clk 0:02:43]} 12. Bd4 {[%clk 0:02:49]}  Bd6 {[%clk 0:02:39]} 13. exd5 {[%clk 0:02:41]}  Nxd5 {[%clk 0:02:37]} 14. O-O-O {[%clk 0:02:31]}  O-O {[%clk 0:02:28]} 15. h5 {[%clk 0:02:30]}  Nxd3+ {[%clk 0:02:26]} 16. Qxd3 {[%clk 0:02:29]}  Qg5+ {[%clk 0:02:27]} 17. Kb1 {[%clk 0:02:27]}  c5 {[%clk 0:02:26]} 18. Bf2 {[%clk 0:02:05]}  Qf5 {[%clk 0:02:22]} 19. Qxf5 {[%clk 0:02:03]}  gxf5 {[%clk 0:02:22]} 20. Nh3 {[%clk 0:01:59]}  Rfe8 {[%clk 0:02:20]} 21. Nc1 {[%clk 0:01:59]}  c4 {[%clk 0:02:18]} 22. Ka1 {[%clk 0:01:51]}  b4 {[%clk 0:02:13]} 23. cxb4 {[%clk 0:01:49]}  Bxb4 {[%clk 0:02:13]} 24. Bd4 {[%clk 0:01:46]}  Rad8 {[%clk 0:02:10]} 25. a3 {[%clk 0:01:45]}  Bf8 {[%clk 0:02:05]} 26. g4 {[%clk 0:01:42]}  Ne3 {[%clk 0:01:52]} 27. Bxe3 {[%clk 0:01:38]}  Rxd1 {[%clk 0:01:51]} 28. Rxd1 {[%clk 0:01:39]}  Rxe3 {[%clk 0:01:52]} 29. gxf5 {[%clk 0:01:34]}  Rxf3 {[%clk 0:01:52]} 30. Rg1+ {[%clk 0:01:31]}  Kh8 {[%clk 0:01:52]} 31. Ng5 {[%clk 0:01:28]}  Rxf5 {[%clk 0:01:52]} 32. Ne2 {[%clk 0:01:25]}  h6 {[%clk 0:01:51]} 33. Nh3 {[%clk 0:01:23]}  Rxh5 {[%clk 0:01:49]} 34. Nhf4 {[%clk 0:01:23]}  Rf5 {[%clk 0:01:47]} 35. Rg4 {[%clk 0:01:21]}  Bd6 {[%clk 0:01:45]} 36. Kb1 {[%clk 0:01:19]}  Bf3 {[%clk 0:01:42]} 37. Rh4 {[%clk 0:01:19]}  Kh7 {[%clk 0:01:38]} 38. Kc2 {[%clk 0:01:17]}  Be5 {[%clk 0:01:31]} 39. a4 {[%clk 0:01:06]}  a5 {[%clk 0:01:31]} 40. b3 {[%clk 0:01:04]}  Be4+ {[%clk 0:01:27]} 41. Kd2 {[%clk 0:01:01]}  cxb3 {[%clk 0:01:25]} 42. Nh3 {[%clk 0:00:57]}  b2 {[%clk 0:01:23]} 43. Rxe4 {[%clk 0:00:53]}  b1=Q {[%clk 0:01:22]} 0-1


[Site "https://www.chess.com"]

[Event "Titled Tuesday Blitz July 11 Early 2023"]
[White "Pakleza, Zbigniew"]
[Black "musclemonster12"]
[WhiteFideId "1119290"]
[WhiteElo "2825"]
[BlackElo "2552"]
[Result "1-0"]
[Round "3"]
[TimeControl "180+2"]
[Date "2023.07.11"]
[WhiteClock "0:01:28"]
[BlackClock "0:00:12"]
[Board "54"]

1. d4 {[%clk 0:03:00]}  Nf6 {[%clk 0:02:59]} 2. Nf3 {[%clk 0:03:01]}  e6 {[%clk 0:02:57]} 3. Bf4 {[%clk 0:03:01]}  d5 {[%clk 0:02:52]} 4. e3 {[%clk 0:03:00]}  c5 {[%clk 0:02:52]} 5. c3 {[%clk 0:03:00]}  Bd6 {[%clk 0:02:53]} 6. Bg3 {[%clk 0:03:00]}  Nc6 {[%clk 0:02:52]} 7. Nbd2 {[%clk 0:03:00]}  O-O {[%clk 0:02:52]} 8. Bd3 {[%clk 0:03:00]}  Be7 {[%clk 0:02:49]} 9. Ne5 {[%clk 0:02:56]}  Qb6 {[%clk 0:02:49]} 10. Rb1 {[%clk 0:02:49]}  Nxe5 {[%clk 0:02:48]} 11. Bxe5 {[%clk 0:02:44]}  Nd7 {[%clk 0:02:48]} 12. Bg3 {[%clk 0:02:44]}  Qa5 {[%clk 0:02:18]} 13. a3 {[%clk 0:02:42]}  c4 {[%clk 0:02:17]} 14. Bc2 {[%clk 0:02:42]}  f5 {[%clk 0:02:16]} 15. f3 {[%clk 0:02:41]}  b5 {[%clk 0:02:10]} 16. O-O {[%clk 0:02:39]}  Bb7 {[%clk 0:02:06]} 17. e4 {[%clk 0:02:39]}  f4 {[%clk 0:02:01]} 18. Bf2 {[%clk 0:02:37]}  e5 {[%clk 0:01:58]} 19. exd5 {[%clk 0:02:31]}  Bxd5 {[%clk 0:01:57]} 20. dxe5 {[%clk 0:02:22]}  Nxe5 {[%clk 0:01:58]} 21. Nb3 {[%clk 0:02:12]}  Qd8 {[%clk 0:01:56]} 22. Nd4 {[%clk 0:02:12]}  a6 {[%clk 0:01:48]} 23. Re1 {[%clk 0:02:11]}  Bf6 {[%clk 0:01:47]} 24. Nf5 {[%clk 0:01:58]}  Bc6 {[%clk 0:00:51]} 25. Rxe5 {[%clk 0:01:45]}  Bxe5 {[%clk 0:00:26]} 26. Qxd8 {[%clk 0:01:43]}  Raxd8 {[%clk 0:00:27]} 27. Ne7+ {[%clk 0:01:43]}  Kh8 {[%clk 0:00:28]} 28. Nxc6 {[%clk 0:01:44]}  Rd2 {[%clk 0:00:29]} 29. Be4 {[%clk 0:01:35]}  Bf6 {[%clk 0:00:29]} 30. Nd4 {[%clk 0:01:30]}  Rd8 {[%clk 0:00:12]} 31. Kf1 {[%clk 0:01:28]} 1-0


[Site "https://www.chess.com"]

[Event "Titled Tuesday Blitz July 11 Early 2023"]
[White "Chen, Max"]
[Black "Kosteniuk, Alexandra"]
[WhiteFideId "2622440"]
[BlackFideId "4128125"]
[WhiteElo "2535"]
[BlackElo "2794"]
[Result "0-1"]
[Round "3"]
[TimeControl "180+2"]
[Date "2023.07.11"]
[WhiteClock "0:00:05"]
[BlackClock "0:00:43"]
[Board "55"]

1. e4 {[%clk 0:03:00]}  c6 {[%clk 0:02:58]} 2. c4 {[%clk 0:02:55]}  e5 {[%clk 0:02:56]} 3. d4 {[%clk 0:02:44]}  Nf6 {[%clk 0:02:37]} 4. Nc3 {[%clk 0:02:08]}  Bb4 {[%clk 0:02:35]} 5. dxe5 {[%clk 0:02:07]}  Nxe4 {[%clk 0:02:35]} 6. Qd4 {[%clk 0:02:03]}  Qa5 {[%clk 0:02:12]} 7. Bd2 {[%clk 0:01:33]}  Nxd2 {[%clk 0:02:05]} 8. Kxd2 {[%clk 0:01:30]}  O-O {[%clk 0:02:02]} 9. a3 {[%clk 0:01:17]}  d6 {[%clk 0:02:00]} 10. Re1 {[%clk 0:01:07]}  Bc5 {[%clk 0:01:42]} 11. Qh4 {[%clk 0:01:04]}  dxe5 {[%clk 0:01:35]} 12. Rxe5 {[%clk 0:00:54]}  Nd7 {[%clk 0:01:30]} 13. Rh5 {[%clk 0:00:37]}  Nf6 {[%clk 0:01:29]} 14. Rg5 {[%clk 0:00:34]}  Bxf2 {[%clk 0:01:14]} 15. Rxa5 {[%clk 0:00:21]}  Bxh4 {[%clk 0:01:12]} 16. g3 {[%clk 0:00:19]}  b6 {[%clk 0:01:12]} 17. Re5 {[%clk 0:00:18]}  Ng4 {[%clk 0:01:12]} 18. Re2 {[%clk 0:00:11]}  Bg5+ {[%clk 0:01:09]} 19. Ke1 {[%clk 0:00:11]}  Ba6 {[%clk 0:01:05]} 20. Nf3 {[%clk 0:00:10]}  Bf6 {[%clk 0:01:02]} 21. h3 {[%clk 0:00:10]}  Bxc3+ {[%clk 0:00:58]} 22. bxc3 {[%clk 0:00:10]}  Nf6 {[%clk 0:00:58]} 23. Re7 {[%clk 0:00:09]}  Rae8 {[%clk 0:00:56]} 24. Rxe8 {[%clk 0:00:08]}  Rxe8+ {[%clk 0:00:57]} 25. Kd2 {[%clk 0:00:08]}  Ne4+ {[%clk 0:00:57]} 26. Kc2 {[%clk 0:00:08]}  Nxg3 {[%clk 0:00:57]} 27. Rg1 {[%clk 0:00:09]}  Nxf1 {[%clk 0:00:57]} 28. Rxf1 {[%clk 0:00:09]}  Bxc4 {[%clk 0:00:58]} 29. Rg1 {[%clk 0:00:09]}  f6 {[%clk 0:00:57]} 30. Nd4 {[%clk 0:00:09]}  c5 {[%clk 0:00:54]} 31. Nf5 {[%clk 0:00:10]}  g6 {[%clk 0:00:50]} 32. Nd6 {[%clk 0:00:10]}  Re2+ {[%clk 0:00:50]} 33. Kd1 {[%clk 0:00:10]}  Ba6 {[%clk 0:00:46]} 34. c4 {[%clk 0:00:09]}  Re6 {[%clk 0:00:45]} 35. Nb5 {[%clk 0:00:08]}  Bxb5 {[%clk 0:00:46]} 36. cxb5 {[%clk 0:00:08]}  f5 {[%clk 0:00:46]} 37. Kc2 {[%clk 0:00:09]}  Kf7 {[%clk 0:00:45]} 38. Kc3 {[%clk 0:00:09]}  f4 {[%clk 0:00:45]} 39. Kc4 {[%clk 0:00:10]}  f3 {[%clk 0:00:45]} 40. Rf1 {[%clk 0:00:09]}  Rf6 {[%clk 0:00:45]} 41. Rf2 {[%clk 0:00:09]}  g5 {[%clk 0:00:44]} 42. a4 {[%clk 0:00:04]}  h5 {[%clk 0:00:44]} 43. a5 {[%clk 0:00:05]}  g4 {[%clk 0:00:45]} 44. hxg4 {[%clk 0:00:05]}  hxg4 {[%clk 0:00:44]} 45. axb6 {[%clk 0:00:06]}  axb6 {[%clk 0:00:44]} 46. Kd5 {[%clk 0:00:05]}  g3 {[%clk 0:00:44]} 47. Rd2 {[%clk 0:00:05]}  f2 {[%clk 0:00:45]} 48. Ke5 {[%clk 0:00:05]}  f1=Q {[%clk 0:00:44]} 49. Rd7+ {[%clk 0:00:06]}  Kg6 {[%clk 0:00:43]} 50. Rd3 {[%clk 0:00:05]}  Qf5# {[%clk 0:00:43]} 0-1


[Site "https://www.chess.com"]

[Event "Titled Tuesday Blitz July 11 Early 2023"]
[White "Tristan, Leonardo"]
[Black "Fiorito, Francisco"]
[WhiteFideId "113816"]
[BlackFideId "180165"]
[WhiteElo "2770"]
[BlackElo "2528"]
[Result "1-0"]
[Round "3"]
[TimeControl "180+2"]
[Date "2023.07.11"]
[WhiteClock "0:00:08"]
[BlackClock "0:00:10"]
[Board "56"]

1. d4 {[%clk 0:03:00]}  Nf6 {[%clk 0:02:59]} 2. Nf3 {[%clk 0:03:01]}  b6 {[%clk 0:02:52]} 3. Bf4 {[%clk 0:03:00]}  Bb7 {[%clk 0:02:52]} 4. e3 {[%clk 0:03:01]}  g6 {[%clk 0:02:51]} 5. Be2 {[%clk 0:03:00]}  Bg7 {[%clk 0:02:51]} 6. O-O {[%clk 0:03:00]}  d6 {[%clk 0:02:50]} 7. h3 {[%clk 0:03:00]}  O-O {[%clk 0:02:51]} 8. Bh2 {[%clk 0:03:01]}  Nbd7 {[%clk 0:02:51]} 9. a4 {[%clk 0:03:01]}  a6 {[%clk 0:02:50]} 10. Nbd2 {[%clk 0:03:01]}  Qe8 {[%clk 0:02:49]} 11. a5 {[%clk 0:02:58]}  b5 {[%clk 0:02:49]} 12. c4 {[%clk 0:02:58]}  bxc4 {[%clk 0:02:45]} 13. Nxc4 {[%clk 0:02:58]}  Ne4 {[%clk 0:02:32]} 14. Qc2 {[%clk 0:02:53]}  Ndf6 {[%clk 0:02:28]} 15. Rfc1 {[%clk 0:02:51]}  Qd7 {[%clk 0:02:26]} 16. Ne1 {[%clk 0:02:46]}  Ng5 {[%clk 0:02:02]} 17. Bf4 {[%clk 0:02:16]}  Ne6 {[%clk 0:01:58]} 18. Bg3 {[%clk 0:02:15]}  Rab8 {[%clk 0:01:41]} 19. Nd3 {[%clk 0:02:11]}  Rfc8 {[%clk 0:01:32]} 20. Qa4 {[%clk 0:02:04]}  Bc6 {[%clk 0:01:26]} 21. Qa3 {[%clk 0:02:01]}  Bb5 {[%clk 0:01:25]} 22. b3 {[%clk 0:02:00]}  Qe8 {[%clk 0:01:22]} 23. Bf3 {[%clk 0:01:56]}  Ng5 {[%clk 0:01:17]} 24. Be2 {[%clk 0:01:54]}  Nge4 {[%clk 0:01:17]} 25. Bh2 {[%clk 0:01:55]}  h5 {[%clk 0:01:04]} 26. Rc2 {[%clk 0:01:54]}  Rd8 {[%clk 0:00:41]} 27. Rac1 {[%clk 0:01:53]}  h4 {[%clk 0:00:37]} 28. Ncb2 {[%clk 0:01:44]}  c6 {[%clk 0:00:34]} 29. Nb4 {[%clk 0:01:39]}  Bxe2 {[%clk 0:00:18]} 30. Rxe2 {[%clk 0:01:40]}  c5 {[%clk 0:00:18]} 31. dxc5 {[%clk 0:01:10]}  Nxc5 {[%clk 0:00:18]} 32. Na4 {[%clk 0:00:23]}  Qb5 {[%clk 0:00:16]} 33. Rc4 {[%clk 0:00:22]}  Nfe4 {[%clk 0:00:10]} 34. Rec2 {[%clk 0:00:19]}  Rb7 {[%clk 0:00:08]} 35. f3 {[%clk 0:00:13]}  Nxa4 {[%clk 0:00:07]} 36. Qxa4 {[%clk 0:00:13]}  Qxa4 {[%clk 0:00:07]} 37. bxa4 {[%clk 0:00:14]}  Nc5 {[%clk 0:00:08]} 38. Nc6 {[%clk 0:00:10]}  Rc8 {[%clk 0:00:07]} 39. Rb4 {[%clk 0:00:07]}  Rbc7 {[%clk 0:00:05]} 40. Nd4 {[%clk 0:00:05]}  Bf8 {[%clk 0:00:04]} 41. Rb6 {[%clk 0:00:05]}  Nd3 {[%clk 0:00:04]} 42. Rxc7 {[%clk 0:00:05]}  Rxc7 {[%clk 0:00:05]} 43. Kf1 {[%clk 0:00:05]}  Rc1+ {[%clk 0:00:03]} 44. Ke2 {[%clk 0:00:05]}  Nc5 {[%clk 0:00:04]} 45. Rb8 {[%clk 0:00:05]}  Kg7 {[%clk 0:00:03]} 46. Bf4 {[%clk 0:00:05]}  Ra1 {[%clk 0:00:03]} 47. Nc6 {[%clk 0:00:05]}  Ra2+ {[%clk 0:00:04]} 48. Kf1 {[%clk 0:00:05]}  e5 {[%clk 0:00:03]} 49. Bg5 {[%clk 0:00:05]}  Ra1+ {[%clk 0:00:02]} 50. Kf2 {[%clk 0:00:05]}  Ra2+ {[%clk 0:00:03]} 51. Kg1 {[%clk 0:00:05]}  Nd3 {[%clk 0:00:03]} 52. Bxh4 {[%clk 0:00:05]}  Rxa4 {[%clk 0:00:02]} 53. Bf6+ {[%clk 0:00:03]}  Kxf6 {[%clk 0:00:02]} 54. Rxf8 {[%clk 0:00:04]}  Nc5 {[%clk 0:00:02]} 55. Rd8 {[%clk 0:00:05]}  Ke6 {[%clk 0:00:02]} 56. Ra8 {[%clk 0:00:05]}  Ra1+ {[%clk 0:00:02]} 57. Kh2 {[%clk 0:00:05]}  Ra2 {[%clk 0:00:03]} 58. Ra7 {[%clk 0:00:05]}  f5 {[%clk 0:00:02]} 59. Nd8+ {[%clk 0:00:03]}  Kf6 {[%clk 0:00:02]} 60. Nc6 {[%clk 0:00:02]}  e4 {[%clk 0:00:01]} 61. fxe4 {[%clk 0:00:02]}  fxe4 {[%clk 0:00:02]} 62. Rd7 {[%clk 0:00:03]}  Ke6 {[%clk 0:00:01]} 63. Re7+ {[%clk 0:00:03]}  Kf5 {[%clk 0:00:01]} 64. Rf7+ {[%clk 0:00:03]}  Ke6 {[%clk 0:00:02]} 65. Rf8 {[%clk 0:00:03]}  Kd5 {[%clk 0:00:03]} 66. Ne7+ {[%clk 0:00:03]}  Kc4 {[%clk 0:00:04]} 67. Nxg6 {[%clk 0:00:04]}  Nd3 {[%clk 0:00:04]} 68. Nf4 {[%clk 0:00:04]}  d5 {[%clk 0:00:05]} 69. Rc8+ {[%clk 0:00:03]}  Nc5 {[%clk 0:00:02]} 70. Ne6 {[%clk 0:00:03]}  Rxa5 {[%clk 0:00:03]} 71. h4 {[%clk 0:00:04]}  Kb4 {[%clk 0:00:03]} 72. Nxc5 {[%clk 0:00:04]}  Rxc5 {[%clk 0:00:04]} 73. Rxc5 {[%clk 0:00:05]}  Kxc5 {[%clk 0:00:05]} 74. h5 {[%clk 0:00:06]}  d4 {[%clk 0:00:05]} 75. exd4+ {[%clk 0:00:06]}  Kxd4 {[%clk 0:00:06]} 76. h6 {[%clk 0:00:06]}  e3 {[%clk 0:00:07]} 77. h7 {[%clk 0:00:07]}  e2 {[%clk 0:00:07]} 78. h8=Q+ {[%clk 0:00:08]}  Kd3 {[%clk 0:00:08]} 79. Qd8+ {[%clk 0:00:07]}  Ke3 {[%clk 0:00:09]} 80. Qe7+ {[%clk 0:00:07]}  Kd2 {[%clk 0:00:10]} 81. Qd6+ {[%clk 0:00:08]}  Kc1 {[%clk 0:00:10]} 82. Qc5+ {[%clk 0:00:08]}  Kd1 {[%clk 0:00:11]} 83. Qd4+ {[%clk 0:00:08]}  Kc2 {[%clk 0:00:11]} 84. Qe3 {[%clk 0:00:08]}  Kd1 {[%clk 0:00:10]} 85. Qd3+ {[%clk 0:00:08]} 1-0


[Site "https://www.chess.com"]

[Event "Titled Tuesday Blitz July 11 Early 2023"]
[White "Matinian, Nikita"]
[Black "arenal72"]
[WhiteFideId "24129100"]
[WhiteElo "2705"]
[BlackElo "2426"]
[Result "1/2-1/2"]
[Round "3"]
[TimeControl "180+2"]
[Date "2023.07.11"]
[WhiteClock "0:00:08"]
[BlackClock "0:00:22"]
[Board "59"]

1. e4 {[%clk 0:03:00]}  Nc6 {[%clk 0:02:58]} 2. Nf3 {[%clk 0:02:59]}  d6 {[%clk 0:02:58]} 3. d4 {[%clk 0:02:59]}  Nf6 {[%clk 0:02:54]} 4. Nc3 {[%clk 0:02:59]}  g6 {[%clk 0:02:54]} 5. d5 {[%clk 0:02:58]}  Nb8 {[%clk 0:02:52]} 6. Bf4 {[%clk 0:02:57]}  Bg7 {[%clk 0:02:52]} 7. Qd2 {[%clk 0:02:57]}  e5 {[%clk 0:02:52]} 8. dxe6 {[%clk 0:02:55]}  fxe6 {[%clk 0:02:51]} 9. Bh6 {[%clk 0:02:54]}  O-O {[%clk 0:02:50]} 10. Bxg7 {[%clk 0:02:54]}  Kxg7 {[%clk 0:02:51]} 11. O-O-O {[%clk 0:02:48]}  e5 {[%clk 0:02:51]} 12. Nxe5 {[%clk 0:02:40]}  Qe7 {[%clk 0:02:40]} 13. Nc4 {[%clk 0:02:24]}  Nxe4 {[%clk 0:02:37]} 14. Qd4+ {[%clk 0:02:23]}  Nf6 {[%clk 0:02:34]} 15. Nd5 {[%clk 0:02:14]}  Qf7 {[%clk 0:02:24]} 16. Nce3 {[%clk 0:02:14]}  Nc6 {[%clk 0:02:21]} 17. Qxf6+ {[%clk 0:02:13]}  Qxf6 {[%clk 0:02:20]} 18. Nxf6 {[%clk 0:02:14]}  Rxf6 {[%clk 0:02:20]} 19. Nd5 {[%clk 0:02:15]}  Rf7 {[%clk 0:02:20]} 20. f4 {[%clk 0:02:10]}  Be6 {[%clk 0:02:19]} 21. g3 {[%clk 0:02:10]}  Bxd5 {[%clk 0:02:17]} 22. Rxd5 {[%clk 0:02:10]}  Re8 {[%clk 0:02:17]} 23. Bg2 {[%clk 0:02:06]}  Rfe7 {[%clk 0:02:13]} 24. Rhd1 {[%clk 0:02:06]}  Re2 {[%clk 0:02:08]} 25. R5d2 {[%clk 0:02:05]}  Kf6 {[%clk 0:02:02]} 26. c3 {[%clk 0:02:04]}  h5 {[%clk 0:01:52]} 27. Rxe2 {[%clk 0:02:04]}  Rxe2 {[%clk 0:01:51]} 28. Rd2 {[%clk 0:02:05]}  Re1+ {[%clk 0:01:46]} 29. Kc2 {[%clk 0:02:05]}  Nd8 {[%clk 0:01:39]} 30. b4 {[%clk 0:02:00]}  b6 {[%clk 0:01:33]} 31. a4 {[%clk 0:02:00]}  Ne6 {[%clk 0:01:30]} 32. Kb3 {[%clk 0:01:56]}  h4 {[%clk 0:01:25]} 33. Kc4 {[%clk 0:01:55]}  hxg3 {[%clk 0:01:21]} 34. hxg3 {[%clk 0:01:56]}  Re3 {[%clk 0:01:21]} 35. Rd3 {[%clk 0:01:55]}  Rxd3 {[%clk 0:01:17]} 36. Kxd3 {[%clk 0:01:55]}  Nd8 {[%clk 0:01:17]} 37. Kc4 {[%clk 0:01:46]}  c6 {[%clk 0:01:17]} 38. b5 {[%clk 0:01:43]}  d5+ {[%clk 0:00:56]} 39. Kd3 {[%clk 0:01:43]}  Ke6 {[%clk 0:00:54]} 40. c4 {[%clk 0:01:32]}  dxc4+ {[%clk 0:00:52]} 41. Kxc4 {[%clk 0:01:33]}  c5 {[%clk 0:00:51]} 42. g4 {[%clk 0:01:27]}  Kd6 {[%clk 0:00:48]} 43. Bd5 {[%clk 0:01:05]}  Ne6 {[%clk 0:00:45]} 44. f5 {[%clk 0:00:50]}  gxf5 {[%clk 0:00:43]} 45. gxf5 {[%clk 0:00:51]}  Nf4 {[%clk 0:00:41]} 46. Bb7 {[%clk 0:00:25]}  Ke5 {[%clk 0:00:39]} 47. Bc8 {[%clk 0:00:25]}  Nd5 {[%clk 0:00:37]} 48. a5 {[%clk 0:00:23]}  Ne3+ {[%clk 0:00:36]} 49. Kd3 {[%clk 0:00:21]}  Nxf5 {[%clk 0:00:36]} 50. axb6 {[%clk 0:00:12]}  axb6 {[%clk 0:00:37]} 51. Bd7 {[%clk 0:00:12]}  Nd6 {[%clk 0:00:35]} 52. Bc6 {[%clk 0:00:11]}  Nf5 {[%clk 0:00:33]} 53. Kc4 {[%clk 0:00:11]}  Nd4 {[%clk 0:00:32]} 54. Be8 {[%clk 0:00:11]}  Ke4 {[%clk 0:00:32]} 55. Bg6+ {[%clk 0:00:11]}  Ke5 {[%clk 0:00:29]} 56. Be8 {[%clk 0:00:11]}  Kd6 {[%clk 0:00:30]} 57. Kd3 {[%clk 0:00:10]}  Kd5 {[%clk 0:00:27]} 58. Bf7+ {[%clk 0:00:09]}  Ne6 {[%clk 0:00:27]} 59. Kc3 {[%clk 0:00:08]}  Ke5 {[%clk 0:00:27]} 60. Kc4 {[%clk 0:00:08]}  Nf4 {[%clk 0:00:26]} 61. Be8 {[%clk 0:00:08]}  Nd5 {[%clk 0:00:26]} 62. Bd7 {[%clk 0:00:07]}  Nf6 {[%clk 0:00:25]} 63. Bc6 {[%clk 0:00:07]}  Ne4 {[%clk 0:00:25]} 64. Bd7 {[%clk 0:00:06]}  Nd6+ {[%clk 0:00:25]} 65. Kc3 {[%clk 0:00:07]}  Kd5 {[%clk 0:00:26]} 66. Bc6+ {[%clk 0:00:07]}  Ke5 {[%clk 0:00:26]} 67. Bd7 {[%clk 0:00:07]}  Kf4 {[%clk 0:00:19]} 68. Bc6 {[%clk 0:00:05]}  Ke3 {[%clk 0:00:20]} 69. Bd7 {[%clk 0:00:05]}  Ke2 {[%clk 0:00:20]} 70. Bc6 {[%clk 0:00:05]}  Kd1 {[%clk 0:00:21]} 71. Bd7 {[%clk 0:00:05]}  Kc1 {[%clk 0:00:21]} 72. Bc6 {[%clk 0:00:05]}  Kb1 {[%clk 0:00:22]} 73. Kb3 {[%clk 0:00:05]}  Kc1 {[%clk 0:00:20]} 74. Kc3 {[%clk 0:00:06]}  Kd1 {[%clk 0:00:20]} 75. Bd7 {[%clk 0:00:06]}  Ke2 {[%clk 0:00:21]} 76. Bc6 {[%clk 0:00:06]}  Ke3 {[%clk 0:00:21]} 77. Bd7 {[%clk 0:00:07]}  Ke4 {[%clk 0:00:22]} 78. Bc6+ {[%clk 0:00:08]}  Ke5 {[%clk 0:00:22]} 79. Bd7 {[%clk 0:00:08]} 1/2-1/2


[Site "https://www.chess.com"]

[Event "Titled Tuesday Blitz July 11 Early 2023"]
[White "Oparin, Grigoriy"]
[Black "Michalczak, Thomas"]
[WhiteFideId "24125890"]
[BlackFideId "4622634"]
[WhiteElo "2948"]
[BlackElo "2508"]
[Result "1-0"]
[Round "3"]
[TimeControl "180+2"]
[Date "2023.07.11"]
[WhiteClock "0:01:08"]
[BlackClock "0:00:16"]
[Board "65"]

1. Nc3 {[%clk 0:03:00]}  d5 {[%clk 0:02:54]} 2. e4 {[%clk 0:03:01]}  d4 {[%clk 0:02:54]} 3. Nce2 {[%clk 0:03:01]}  e5 {[%clk 0:02:54]} 4. Ng3 {[%clk 0:03:01]}  Be6 {[%clk 0:02:53]} 5. Nf3 {[%clk 0:02:57]}  f6 {[%clk 0:02:53]} 6. c3 {[%clk 0:02:54]}  d3 {[%clk 0:02:50]} 7. Nh4 {[%clk 0:02:36]}  c5 {[%clk 0:02:02]} 8. b3 {[%clk 0:02:17]}  Nc6 {[%clk 0:01:55]} 9. Rb1 {[%clk 0:02:09]}  Qd7 {[%clk 0:01:53]} 10. Nhf5 {[%clk 0:02:00]}  O-O-O {[%clk 0:01:51]} 11. Ne3 {[%clk 0:01:59]}  g6 {[%clk 0:01:44]} 12. c4 {[%clk 0:01:50]}  Nb4 {[%clk 0:01:33]} 13. a3 {[%clk 0:01:45]}  Nc2+ {[%clk 0:01:22]} 14. Nxc2 {[%clk 0:01:45]}  dxc2 {[%clk 0:01:23]} 15. Qxc2 {[%clk 0:01:46]}  h5 {[%clk 0:01:23]} 16. Ne2 {[%clk 0:01:39]}  Ne7 {[%clk 0:01:18]} 17. Nc3 {[%clk 0:01:39]}  Nc6 {[%clk 0:01:18]} 18. Nd5 {[%clk 0:01:38]}  Nd4 {[%clk 0:01:19]} 19. Qd1 {[%clk 0:01:34]}  Bxd5 {[%clk 0:01:14]} 20. cxd5 {[%clk 0:01:34]}  Bh6 {[%clk 0:01:12]} 21. Bb2 {[%clk 0:01:34]}  f5 {[%clk 0:01:05]} 22. d3 {[%clk 0:01:34]}  Rhf8 {[%clk 0:01:00]} 23. Be2 {[%clk 0:01:23]}  Kb8 {[%clk 0:00:55]} 24. O-O {[%clk 0:01:22]}  Rf7 {[%clk 0:00:46]} 25. b4 {[%clk 0:01:19]}  cxb4 {[%clk 0:00:39]} 26. Bxd4 {[%clk 0:01:20]}  exd4 {[%clk 0:00:39]} 27. Rxb4 {[%clk 0:01:20]}  fxe4 {[%clk 0:00:39]} 28. dxe4 {[%clk 0:01:21]}  Bg7 {[%clk 0:00:30]} 29. Qb3 {[%clk 0:01:17]}  Qd6 {[%clk 0:00:26]} 30. f4 {[%clk 0:01:11]}  Rdd7 {[%clk 0:00:24]} 31. e5 {[%clk 0:01:11]}  Qxd5 {[%clk 0:00:24]} 32. Qxd5 {[%clk 0:01:12]}  Rxd5 {[%clk 0:00:25]} 33. Bc4 {[%clk 0:01:12]}  Rfd7 {[%clk 0:00:25]} 34. Bxd5 {[%clk 0:01:12]}  Rxd5 {[%clk 0:00:26]} 35. Rd1 {[%clk 0:01:10]}  d3 {[%clk 0:00:26]} 36. Rb3 {[%clk 0:01:10]}  Rd4 {[%clk 0:00:20]} 37. Rbxd3 {[%clk 0:01:07]}  Rxf4 {[%clk 0:00:16]} 38. Rd8+ {[%clk 0:01:08]} 1-0


[Site "https://www.chess.com"]